bitfinex/quotes_ETHUSD_20251217
["timestamp","ask_amount","ask_price","bid_price","bid_amount"]
[1765939611426,0.002,2960.1,2960.0,4.34797837]
[1765939611831,0.002,2960.1,2960.0,5.12062569]
[1765939613134,0.002,2960.1,2960.0,9.82379244]
[1765939613802,0.002,2960.1,2960.0,10.35879244]
[1765939613998,0.002,2960.1,2960.0,5.65562569]
[1765939615706,0.1163,2960.1,2959.8,0.535]
[1765939616130,0.1143,2960.0,2959.9,3.84278953]
[1765939616938,0.1163,2960.1,2960.0,3.37837837]
[1765939617134,0.002,2960.1,2960.0,4.34797837]
[1765939617342,0.002,2960.1,2960.0,5.69087184]
[1765939618311,0.002,2960.1,2960.0,6.15525207]
[1765939618536,0.002,2960.1,2960.0,6.18903585]
[1765939618941,0.002,2960.1,2960.0,6.15525207]
[1765939619746,0.002,2960.1,2960.0,4.3230586]
[1765939620055,0.002,2960.3,2960.2,0.9696]
[1765939620212,0.002,2960.6,2960.5,0.9696]
[1765939620414,0.002,2960.6,2960.5,6.11204882]
[1765939620712,0.002,2960.6,2960.5,6.73591366]
[1765939621743,0.002,2960.6,2960.5,5.41055471]
[1765939621943,0.002,2960.6,2960.5,10.11372146]
[1765939622943,0.002,2960.6,2960.5,10.57810169]
[1765939623314,0.002,2960.6,2960.5,5.87493494]
[1765939623519,0.002,2960.6,2960.5,10.57810169]
[1765939624123,0.002,2960.6,2960.5,5.87493494]
[1765939624345,0.002,2960.6,2960.5,6.00443094]
[1765939631857,0.1203,2960.6,2960.5,0.535]
[1765939632060,0.1203,2960.6,2960.5,3.9128078]
[1765939632662,0.002,2960.6,2960.5,4.3818078]
[1765939632839,0.002,2960.6,2960.5,4.8771078]
[1765939634253,0.002,2960.6,2960.5,10.07843285]
[1765939634433,0.002,2960.6,2960.5,11.39029015]
[1765939640757,0.002,2960.6,2960.5,4.84618803]
[1765939641068,0.1203,2960.6,2960.5,3.84218803]
[1765939641268,0.1183,2960.4,2960.3,0.001]
[1765939641468,0.1183,2960.4,2960.3,3.379036]
[1765939641773,0.002,2960.6,2960.3,3.379036]
[1765939643042,0.1183,2960.4,2960.3,3.379036]
[1765939643974,0.1183,2960.4,2960.3,0.001]
[1765939646187,0.002,2960.6,2960.3,0.001]
[1765939646188,0.002,2960.6,2960.5,0.9643]
[1765939646373,0.002,2961.1,2960.5,0.9643]
[1765939646374,0.002,2961.1,2961.0,0.9643]
[1765939646557,0.002,2961.1,2961.0,1.4993]
[1765939648097,0.002,2961.1,2961.0,4.87653741]
[1765939649494,0.002,2961.1,2961.0,4.38023741]
[1765939649998,0.1203,2961.0,2960.9,3.84172055]
[1765939650158,0.1203,2961.0,2960.9,4.37572055]
[1765939650557,0.002,2961.1,2960.9,4.37572055]
[1765939650880,0.1203,2961.0,2960.9,4.37572055]
[1765939651886,0.1203,2961.0,2960.9,3.84172055]
[1765939652481,0.002,2961.1,2960.9,7.68807203]
[1765939654776,0.002,2961.0,2960.9,4.31072055]
[1765939654963,0.1223,2961.0,2960.9,3.84172055]
[1765939656069,0.1203,2960.7,2960.4,3.37789639]
[1765939656264,0.1203,2960.6,2960.5,4.37618803]
[1765939656784,0.1726,2960.9,2960.5,8.21169583]
[1765939656992,0.0523,2960.9,2960.5,8.21169583]
[1765939657186,0.1726,2960.9,2960.5,4.83388803]
[1765939657498,0.1726,2960.9,2960.5,4.37618803]
[1765939658596,0.1203,2960.6,2960.5,4.37618803]
[1765939661896,0.1203,2960.6,2960.5,3.84218803]
[1765939662198,0.1203,2960.6,2960.5,4.37618803]
[1765939662904,0.1223,2960.6,2960.5,4.37618803]
[1765939663396,0.1223,2960.6,2960.5,3.9118078]
[1765939665224,0.002,2960.6,2960.5,4.3695078]
[1765939665382,0.002,2960.6,2960.5,4.8477078]
[1765939665700,0.1223,2960.6,2960.5,3.9118078]
[1765939666307,0.1223,2960.6,2960.5,3.3778078]
[1765939667105,0.002,2960.6,2960.5,3.3778078]
[1765939667313,0.002,2960.6,2960.5,1.13337278]
[1765939667477,0.002,2960.6,2960.5,5.6353573]
[1765939667678,0.002,2960.6,2960.5,1.40028023]
[1765939669204,0.002,2960.6,2960.5,5.31208803]
[1765939671722,0.002,2960.6,2960.5,5.31308803]
[1765939674213,0.002,2960.6,2960.5,10.01254533]
[1765939674416,0.002,2960.6,2960.5,11.68949561]
[1765939684802,0.002,2960.6,2960.5,11.82486329]
[1765939685567,0.002,2960.6,2960.5,7.12540599]
[1765939686402,0.002,2960.6,2960.5,11.82486329]
[1765939686626,0.002,2960.6,2960.5,6.18950599]
[1765939686835,0.1223,2960.6,2960.5,0.001]
[1765939687546,0.1223,2960.6,2960.5,3.3788078]
[1765939687717,0.1223,2960.6,2960.5,0.001]
[1765939689408,0.002,2960.6,2960.5,0.9565]
[1765939689911,0.002,2960.6,2960.5,0.99027807]
[1765939690111,0.002,2960.6,2960.5,2.72449821]
[1765939690526,0.002,2960.6,2960.5,6.23766957]
[1765939691061,0.002,2960.6,2960.5,6.7020498]
[1765939691748,0.002,2960.6,2960.5,11.4015071]
[1765939692846,0.002,2960.6,2960.5,6.7020498]
[1765939695456,0.002,2960.6,2960.5,4.31628803]
[1765939695758,0.002,2961.3,2960.6,0.9555]
[1765939695937,0.002,2961.3,2960.5,12.45445313]
[1765939695938,0.002,2961.3,2960.7,0.4824]
[1765939696849,0.002,2961.3,2960.8,3.85986554]
[1765939697537,0.002,2961.3,2960.9,0.4824]
[1765939698029,0.002,2961.3,2960.9,1.0164]
[1765939698835,0.002,2961.3,2961.0,0.4824]
[1765939699154,0.002,2961.3,2960.9,0.534]
[1765939699356,0.0531,2961.0,2960.9,0.534]
[1765939699852,0.0551,2961.3,2960.9,0.534]
[1765939700530,0.002,2961.3,2960.9,3.91133962]
[1765939700726,0.002,2961.3,2960.9,4.39373962]
[1765939700955,0.002,2961.3,2961.0,0.4824]
[1765939701137,0.002,2961.3,2961.2,0.4731]
[1765939701840,0.0551,2961.3,2961.0,0.4824]
[1765939702446,0.0551,2961.3,2960.9,7.2886911]
[1765939702858,0.0551,2961.3,2960.9,7.7710911]
[1765939703981,0.0551,2961.3,2961.0,0.4824]
[1765939704265,0.002,2961.3,2961.2,0.4731]
[1765939705237,0.002,2961.3,2961.2,0.9555]
[1765939706540,0.002,2961.3,2961.2,4.33250932]
[1765939706834,0.002,2961.3,2961.2,3.85010932]
[1765939707038,0.0531,2961.2,2961.1,3.37708422]
[1765939707238,0.002,2961.3,2961.2,3.85010932]
[1765939707471,0.002,2961.3,2961.2,8.54956662]
[1765939710472,0.002,2961.3,2961.2,8.07646662]
[1765939710653,0.0551,2961.3,2961.2,8.07646662]
[1765939711347,0.002,2961.3,2961.2,3.85010932]
[1765939711576,0.002,2961.3,2961.2,4.66164214]
[1765939713477,0.002,2961.3,2961.2,5.61714214]
[1765939713675,0.002,2961.3,2961.2,5.13474214]
[1765939714047,0.002,2961.3,2961.1,4.10588083]
[1765939714249,0.0551,2961.3,2961.1,0.72884013]
[1765939714455,0.0551,2961.3,2961.1,4.10592672]
[1765939717273,0.0551,2961.3,2961.2,1.26650094]
[1765939717846,0.0531,2961.2,2961.1,0.72884013]
[1765939718075,0.002,2961.3,2961.1,3.37712336]
[1765939718256,0.002,2961.3,2961.0,3.37723741]
[1765939718443,0.002,2961.3,2961.0,8.07669471]
[1765939718648,0.002,2961.3,2961.0,8.52769471]
[1765939719554,0.002,2961.3,2961.1,0.451]
[1765939719755,0.002,2961.3,2961.1,1.69499321]
[1765939720386,0.002,2961.3,2961.2,3.37700932]
[1765939721080,0.002,2961.3,2961.2,3.84810932]
[1765939721288,0.002,2961.3,2961.2,4.29910932]
[1765939721666,0.002,2961.8,2961.2,4.29910932]
[1765939721667,0.002,2961.8,2961.5,0.9221]
[1765939721870,0.002,2961.8,2961.7,11.19089883]
[1765939722181,0.002,2961.8,2961.7,11.72489883]
[1765939722599,0.002,2961.8,2961.7,15.10133803]
[1765939722760,0.002,2961.8,2961.7,16.94912731]
[1765939722959,0.002,2961.8,2961.7,17.08441487]
[1765939728503,0.002,2962.2,2962.1,1.327604]
[1765939728667,0.002,2962.2,2962.1,11.72489883]
[1765939729193,0.002,2963.0,2962.4,1.327604]
[1765939729397,0.002,2963.0,2962.4,9.57554604]
[1765939730400,0.002,2963.0,2962.4,9.71081347]
[1765939730900,0.002,2963.0,2962.4,9.72100455]
[1765939731087,0.002,2963.0,2962.4,10.18538478]
[1765939731502,0.002,2963.0,2962.9,0.4711]
[1765939731685,3.43070834,2964.2,2963.2,0.451]
[1765939731882,0.34307083,2964.1,2963.4,0.451]
[1765939733379,0.34307083,2964.1,2963.6,0.451]
[1765939733709,0.0591,2964.4,2963.6,0.451]
[1765939733916,3.43248519,2964.4,2963.8,0.451]
[1765939734295,0.534,2965.1,2963.7,0.534]
[1765939734296,0.0591,2964.7,2964.0,5.14257909]
[1765939734600,0.34911592,2964.6,2964.1,0.985]
[1765939734806,0.34911592,2964.6,2964.2,0.451]
[1765939735003,3.37279503,2964.9,2964.5,0.4711]
[1765939735302,3.37279503,2964.9,2964.2,0.451]
[1765939735303,0.0591,2964.6,2964.2,0.451]
[1765939735795,0.0611,2964.9,2964.3,0.451]
[1765939736002,0.002,2964.9,2964.3,0.451]
[1765939736170,0.34538226,2964.9,2964.3,0.451]
[1765939736597,0.002,2964.9,2964.3,0.451]
[1765939736799,0.0591,2964.8,2963.9,1.01399824]
[1765939736999,0.0591,2964.8,2964.1,0.534]
[1765939737498,0.002,2964.9,2964.3,3.82438298]
[1765939737706,0.33945675,2964.9,2964.4,0.451]
[1765939738493,0.39855675,2964.9,2964.2,0.451]
[1765939738993,0.0591,2964.8,2964.1,0.534]
[1765939739306,0.33945675,2964.9,2964.1,0.985]
[1765939739807,3.37290879,2964.8,2964.1,4.35868941]
[1765939740010,0.71443326,2964.7,2964.1,4.35868941]
[1765939740308,3.37290879,2964.8,2964.1,4.35868941]
[1765939740309,0.33945675,2964.9,2964.6,0.4711]
[1765939740470,0.33945675,2964.9,2964.6,0.9221]
[1765939740471,0.002,2964.9,2964.6,0.9221]
[1765939740675,0.002,2964.9,2964.6,0.4711]
[1765939740890,0.002,2964.9,2964.5,0.534]
[1765939740891,0.0591,2964.6,2964.5,0.534]
[1765939741091,0.002,2964.9,2964.5,0.534]
[1765939741292,0.002,2964.9,2964.5,0.985]
[1765939741482,0.002,2964.9,2964.8,0.4711]
[1765939741683,0.002,2964.9,2964.3,0.13518834]
[1765939741684,0.0611,2964.9,2964.3,0.13518834]
[1765939742002,3.43389503,2964.9,2964.3,3.90745764]
[1765939742300,0.0591,2964.2,2963.9,0.451]
[1765939742480,0.3433895,2964.8,2964.2,0.451]
[1765939742683,3.37479503,2964.9,2964.4,0.451]
[1765939742873,3.37479503,2964.9,2964.5,0.451]
[1765939743273,0.002,2964.9,2964.2,0.405504]
[1765939743478,0.002,2964.9,2964.3,0.534]
[1765939743674,3.37479503,2964.9,2964.3,0.534]
[1765939743876,4.04768295,2964.8,2964.3,0.534]
[1765939744076,4.10678295,2964.8,2964.2,3.82449871]
[1765939744277,0.0591,2964.3,2964.2,0.534]
[1765939744479,0.0591,2964.7,2964.2,1.0043]
[1765939744814,0.41067829,2964.6,2964.2,1.0043]
[1765939745013,0.41067829,2964.6,2964.2,4.37787977]
[1765939745199,0.41067829,2964.6,2964.2,4.84987977]
[1765939745383,0.41067829,2964.6,2964.2,1.0043]
[1765939745584,0.41067829,2964.6,2964.2,4.37788885]
[1765939745805,0.46977829,2964.6,2964.2,4.37788885]
[1765939745980,0.46977829,2964.6,2964.2,1.0043]
[1765939746614,0.38428471,2964.5,2964.2,1.0043]
[1765939746812,0.38428471,2964.5,2964.2,0.534]
[1765939746813,0.0591,2964.3,2964.2,0.534]
[1765939747033,0.0591,2964.0,2963.8,0.46438023]
[1765939747184,0.0591,2963.9,2963.8,0.46438023]
[1765939747905,0.0591,2963.8,2963.0,3.37492785]
[1765939748079,0.0591,2963.8,2963.3,3.37461093]
[1765939748275,0.0591,2963.5,2963.4,0.46438023]
[1765939748819,0.0591,2963.5,2963.3,0.46438023]
[1765939749033,0.0591,2963.4,2963.3,0.46438023]
[1765939749731,0.0591,2963.3,2963.2,0.534]
[1765939749900,0.1182,2963.3,2963.2,0.534]
[1765939750219,0.0591,2963.2,2963.1,0.46438023]
[1765939750425,0.0591,2963.1,2963.0,0.99838023]
[1765939750988,0.0591,2963.1,2963.0,4.37333804]
[1765939751291,0.0591,2963.1,2963.0,3.83933804]
[1765939751826,3.37407439,2963.8,2963.0,3.83933804]
[1765939751827,7.28141068,2964.1,2963.2,0.472]
[1765939752010,0.0591,2964.0,2963.2,0.472]
[1765939752208,0.0591,2963.6,2962.7,3.37528046]
[1765939752395,0.0591,2963.1,2963.0,3.37495781]
[1765939752602,0.0591,2963.1,2963.0,0.46438023]
[1765939752790,0.0591,2963.1,2963.0,3.83933804]
[1765939752986,0.0591,2963.1,2963.0,0.46438023]
[1765939753892,0.0591,2963.1,2962.8,0.534]
[1765939754096,4.69157909,2963.8,2962.7,0.534]
[1765939754097,0.0591,2962.9,2962.7,0.534]
[1765939754296,0.0591,2962.9,2962.7,3.90923643]
[1765939754506,0.0591,2963.3,2962.7,3.90923643]
[1765939754705,3.37454327,2963.4,2962.7,3.90923643]
[1765939754916,4.85552737,2963.7,2962.9,0.472]
[1765939755224,3.37409285,2963.8,2962.9,0.472]
[1765939755521,3.43319285,2963.8,2962.9,0.472]
[1765939756228,6.8072857,2963.8,2962.9,0.472]
[1765939756427,0.0591,2963.7,2963.0,3.37495781]
[1765939756939,0.0591,2963.6,2963.1,0.534]
[1765939758541,3.43338067,2963.6,2963.1,0.534]
[1765939758750,3.37428067,2963.6,2963.1,0.534]
[1765939759044,0.0591,2963.2,2963.1,0.534]
[1765939760245,0.1182,2963.2,2963.1,0.534]
[1765939760611,0.0591,2963.2,2963.1,0.534]
[1765939761110,3.37420622,2963.7,2963.1,5.03652481]
[1765939761316,3.37408503,2963.8,2963.1,5.03652481]
[1765939761615,4.05479442,2963.8,2963.2,0.472]
[1765939761826,3.37408503,2963.8,2963.2,0.472]
[1765939762728,3.37408503,2963.8,2963.2,3.84670755]
[1765939763512,3.37408503,2963.8,2963.2,0.472]
[1765939763746,3.37408503,2963.8,2963.1,3.56018983]
[1765939764049,0.0591,2963.7,2963.1,4.09418983]
[1765939764225,0.0591,2963.7,2963.2,3.37469244]
[1765939764748,4.04888779,2963.8,2963.2,3.37469244]
[1765939764937,0.0591,2963.7,2963.1,3.90881014]
[1765939765450,0.0591,2963.7,2963.1,0.534]
[1765939765752,0.0591,2963.6,2963.1,0.534]
[1765939766214,0.0591,2963.6,2963.1,3.90884215]
[1765939766643,0.0591,2963.6,2963.1,4.38084215]
[1765939767445,3.37417398,2963.7,2963.1,4.56624215]
[1765939768181,3.43327398,2963.7,2963.1,4.56624215]
[1765939768317,0.0591,2963.2,2963.1,0.534]
[1765939770826,3.37441506,2963.5,2963.1,0.534]
[1765939771026,0.0591,2963.2,2963.1,0.534]
[1765939771244,0.534,2964.1,2963.1,0.534]
[1765939771433,0.0591,2964.0,2963.1,0.534]
[1765939771635,0.0591,2963.2,2963.1,0.534]
[1765939773371,0.0591,2963.9,2963.1,4.37912992]
[1765939773543,0.0591,2963.7,2963.1,4.37912992]
[1765939773858,0.0591,2963.7,2963.1,5.03652992]
[1765939774653,0.68067383,2963.8,2963.1,5.03652992]
[1765939775137,0.73977383,2963.8,2963.1,5.03652992]
[1765939775554,5.72368781,2966.4,2963.2,0.4975]
[1765939775555,0.0591,2964.2,2963.2,0.4975]
[1765939775858,0.5931,2964.2,2963.3,0.4838]
[1765939776065,3.37347771,2964.3,2963.3,0.4838]
[1765939776471,0.002,2964.4,2963.5,0.4838]
[1765939776769,0.002,2964.4,2963.7,0.4838]
[1765939776977,0.002,2964.4,2963.9,0.4838]
[1765939777268,0.002,2964.4,2964.1,0.6833]
[1765939777574,0.002,2964.4,2964.2,3.37359152]
[1765939777872,0.002,2964.4,2964.3,0.4595]
[1765939778034,0.002,2964.4,2964.3,0.9433]
[1765939778430,0.002,2964.4,2964.3,0.4595]
[1765939779457,0.002,2964.4,2964.3,3.83297771]
[1765939779655,0.002,2964.4,2964.3,4.31677771]
[1765939779994,0.002,2964.4,2964.3,5.01771489]
[1765939780172,0.0591,2964.1,2964.0,0.534]
[1765939780343,0.0591,2963.9,2963.8,3.37402043]
[1765939780548,0.0591,2963.8,2963.7,3.8385157]
[1765939780749,0.0591,2963.8,2963.7,0.46438023]
[1765939781150,0.0591,2963.3,2963.2,3.90866216]
[1765939781480,0.0591,2963.3,2963.2,4.37304239]
[1765939781775,0.0591,2963.3,2963.2,3.83904239]
[1765939782077,0.0591,2964.1,2963.3,0.46438023]
[1765939782280,0.0591,2964.1,2963.4,0.4838]
[1765939782873,0.0591,2964.1,2963.3,0.46438023]
[1765939783583,3.43280789,2964.1,2963.4,3.37450226]
[1765939784093,3.43280789,2964.1,2963.4,7.28300452]
[1765939784253,0.0591,2964.1,2963.4,7.76680452]
[1765939784448,3.37354211,2964.3,2963.4,8.10806551]
[1765939784781,3.37354211,2964.3,2963.5,0.4838]
[1765939784980,3.43264211,2964.3,2963.5,0.4838]
[1765939785153,0.73990123,2964.2,2963.5,0.4838]
[1765939785711,0.68080123,2964.2,2963.6,3.37427453]
[1765939785857,0.002,2964.4,2963.8,0.4838]
[1765939786058,0.002,2964.4,2964.3,0.9433]
[1765939787504,0.002,2964.4,2964.3,4.31677771]
[1765939787706,0.002,2964.4,2964.3,4.85077771]
[1765939788702,0.002,2964.4,2964.3,4.36697771]
[1765939789202,0.0611,2964.4,2964.3,3.90747771]
[1765939789715,0.002,2964.4,2964.3,4.36697771]
[1765939789876,0.002,2964.4,2964.3,5.18941461]
[1765939790077,0.002,2964.4,2964.3,5.67321461]
[1765939792907,0.002,2964.4,2964.3,5.18941461]
[1765939794828,0.002,2964.4,2964.3,5.67321461]
[1765939796496,0.002,2964.4,2964.3,5.18941461]
[1765939797424,0.002,2964.4,2964.3,5.67321461]
[1765939798599,0.002,2964.4,2964.3,5.18941461]
[1765939798796,0.002,2964.4,2964.3,4.36697771]
[1765939799725,0.002,2964.4,2964.3,4.85077771]
[1765939800618,0.002,2964.4,2964.3,5.31515794]
[1765939801927,0.002,2964.4,2964.3,5.72066194]
[1765939802133,3.37141131,2966.2,2965.5,1.1428]
[1765939802427,3.43637737,2966.3,2965.5,1.1428]
[1765939802628,3.37270127,2966.8,2965.5,1.1428]
[1765939802629,0.0651,2966.7,2965.5,1.1428]
[1765939802798,3.43593573,2966.7,2965.7,0.4838]
[1765939802994,0.34379357,2966.6,2965.9,0.4838]
[1765939803327,3.37272227,2966.8,2966.7,0.4595]
[1765939803328,0.002,2966.8,2966.7,0.4595]
[1765939803525,0.002,2966.8,2966.3,0.534]
[1765939803526,0.0691,2966.8,2966.3,0.534]
[1765939803705,0.0691,2966.8,2966.7,0.9433]
[1765939803706,0.002,2966.8,2966.7,0.9433]
[1765939803906,0.0671,2968.0,2967.9,0.4595]
[1765939804105,0.0671,2968.0,2967.9,1.39018023]
[1765939804314,0.0671,2968.6,2967.9,0.96437408]
[1765939804516,0.0671,2968.6,2967.9,0.93068023]
[1765939804719,0.535,2969.3,2968.0,0.4663]
[1765939804894,0.535,2969.3,2968.3,0.4663]
[1765939805105,6.09570668,2969.2,2967.5,0.4663]
[1765939805305,6.09570668,2968.9,2967.4,0.535]
[1765939805505,1.0739509,2968.8,2967.4,0.535]
[1765939805705,0.46438023,2968.5,2966.7,0.4663]
[1765939805937,6.09570668,2968.0,2966.8,0.535]
[1765939806139,0.535,2967.9,2966.7,0.4663]
[1765939806432,0.535,2967.9,2966.5,0.535]
[1765939806433,0.46438023,2967.6,2966.5,0.535]
[1765939806631,0.0191,2966.6,2966.5,0.535]
[1765939806798,0.0191,2966.6,2966.1,0.6498]
[1765939807003,0.0191,2967.0,2966.1,1.1848]
[1765939807326,0.5541,2967.3,2966.2,0.4663]
[1765939807523,0.0191,2967.2,2966.2,0.4663]
[1765939807720,6.74058844,2967.1,2966.2,0.4663]
[1765939807922,0.67596884,2967.0,2966.1,0.7185]
[1765939808135,0.0191,2966.9,2965.7,0.535]
[1765939808930,0.0191,2966.9,2965.8,0.4663]
[1765939810135,0.0191,2966.7,2965.7,0.535]
[1765939810340,6.74127004,2966.8,2965.8,0.4663]
[1765939810636,6.74127004,2966.8,2965.9,0.4663]
[1765939811939,6.76037004,2966.8,2965.9,0.4663]
[1765939812129,6.74127004,2966.8,2966.1,0.6498]
[1765939812439,0.674327,2966.7,2966.2,0.4663]
[1765939813007,0.674327,2966.7,2966.1,0.1835]
[1765939813713,0.0191,2966.6,2965.5,0.6658]
[1765939813916,0.0191,2966.2,2965.1,0.6498]
[1765939814116,6.74240636,2966.3,2965.1,0.6498]
[1765939814117,3.37120318,2966.3,2965.2,0.4663]
[1765939814424,0.535,2966.6,2965.4,0.4663]
[1765939814726,3.90586226,2966.6,2965.6,0.4663]
[1765939815224,6.74174164,2966.6,2965.6,0.4663]
[1765939815537,0.0191,2966.5,2965.5,0.535]
[1765939815838,0.0191,2966.3,2965.5,0.535]
[1765939816039,7.29673366,2966.2,2965.3,0.4663]
[1765939816238,3.37131683,2966.2,2965.2,0.4663]
[1765939816446,3.37098005,2966.5,2965.6,0.4663]
[1765939816624,7.61405811,2966.5,2965.6,0.4663]
[1765939817215,10.98503816,2966.5,2965.6,0.4663]
[1765939817415,0.0191,2966.4,2965.4,0.46438023]
[1765939817630,0.0191,2966.4,2965.3,0.93068023]
[1765939817829,0.0191,2966.4,2965.3,0.4663]
[1765939818024,6.74263366,2966.2,2965.3,0.4663]
[1765939818243,0.0191,2966.1,2965.3,0.93068023]
[1765939818816,0.0191,2966.1,2965.4,0.46438023]
[1765939819045,0.0191,2966.1,2965.3,0.93068023]
[1765939819215,0.0191,2966.1,2965.3,0.4663]
[1765939819417,0.0191,2965.6,2965.5,0.001]
[1765939821540,0.0382,2965.6,2965.5,0.001]
[1765939821846,0.0191,2965.9,2965.5,0.001]
[1765939822145,6.76229002,2966.0,2965.5,0.001]
[1765939822448,0.0382,2965.6,2965.5,0.001]
[1765939823355,3.39069501,2966.0,2965.5,0.001]
[1765939823539,3.37131683,2966.2,2965.5,0.001]
[1765939823721,3.90631683,2966.2,2965.5,0.001]
[1765939824122,6.74263366,2966.2,2965.5,0.001]
[1765939824321,6.76173366,2966.2,2965.5,0.001]
[1765939825127,3.37131683,2966.2,2965.5,0.001]
[1765939825334,6.74263366,2966.2,2965.5,0.001]
[1765939825541,0.0191,2965.6,2965.5,0.001]
[1765939825926,0.46438023,2966.1,2965.5,0.001]
[1765939826125,0.46438023,2966.1,2965.6,3.37199892]
[1765939826356,0.46438023,2966.1,2965.6,3.83829892]
[1765939826856,3.37063502,2966.8,2965.7,0.4663]
[1765939827045,0.46438023,2966.7,2965.8,0.4663]
[1765939827245,0.48348023,2966.7,2965.9,0.535]
[1765939827447,0.46438023,2966.7,2965.9,0.535]
[1765939827651,0.0191,2966.0,2965.9,0.535]
[1765939827952,0.46438023,2966.7,2965.9,0.535]
[1765939828133,7.64514526,2966.7,2965.9,0.535]
[1765939828333,3.37086226,2966.6,2965.9,3.90661866]
[1765939828530,6.74172452,2966.6,2965.9,3.90661866]
[1765939828734,3.38996226,2966.6,2965.9,3.90661866]
[1765939829832,6.76082452,2966.6,2965.9,0.535]
[1765939830155,8.25491092,2966.6,2965.9,0.535]
[1765939830357,0.0191,2966.0,2965.9,0.535]
[1765939830768,0.0191,2966.4,2965.9,0.535]
[1765939830961,6.46,2966.7,2965.9,7.27822443]
[1765939831133,0.002,2966.9,2966.2,6.09570668]
[1765939831333,0.002,2966.9,2966.8,0.9579]
[1765939831539,0.002,2966.9,2966.8,1.4939]
[1765939832072,0.002,2966.9,2966.8,1.899404]
[1765939832570,0.002,2966.9,2966.8,3.86223502]
[1765939832746,0.002,2966.9,2966.8,4.32853502]
[1765939832947,0.002,2966.9,2966.8,5.1253993]
[1765939833472,0.536,2968.0,2966.8,5.1253993]
[1765939833473,0.002,2968.1,2966.9,0.4916]
[1765939833783,0.002,2968.1,2967.3,0.4663]
[1765939833950,0.002,2968.1,2967.5,0.4663]
[1765939834372,0.002,2968.1,2967.4,0.536]
[1765939834373,0.002,2968.1,2967.6,6.73945274]
[1765939834683,0.0211,2967.8,2967.7,0.67394527]
[1765939834850,0.002,2968.1,2967.7,1.20994527]
[1765939835347,0.0211,2967.8,2967.7,0.536]
[1765939835749,0.002,2968.1,2967.7,1.024]
[1765939836076,0.002,2968.1,2967.8,0.488]
[1765939836294,0.002,2968.1,2968.0,0.471]
[1765939836448,0.002,2968.1,2968.0,4.32827223]
[1765939837176,0.002,2968.1,2968.0,5.0980442]
[1765939838246,0.002,2968.1,2968.0,1.24077197]
[1765939838445,0.002,2968.1,2968.0,0.959]
[1765939839744,0.002,2968.1,2968.0,7.46021068]
[1765939840357,0.002,2968.1,2968.0,11.29386314]
[1765939841248,0.002,2968.1,2968.0,5.19815646]
[1765939841472,0.002,2968.1,2968.0,5.23184918]
[1765939841648,0.002,2968.1,2968.0,7.00583101]
[1765939843653,0.002,2968.1,2968.0,6.13594678]
[1765939843981,0.002,2968.1,2968.0,4.37627223]
[1765939844564,0.002,2968.1,2968.0,1.007]
[1765939844891,0.0231,2968.1,2968.0,0.536]
[1765939845768,0.0231,2968.1,2967.6,3.36964839]
[1765939845970,0.0442,2968.1,2967.1,0.6715]
[1765939846164,0.0211,2967.7,2967.6,3.36968889]
[1765939846754,0.0211,2967.7,2967.3,6.74013412]
[1765939846985,0.0211,2967.7,2967.2,4.58285229]
[1765939847154,0.0211,2967.7,2967.2,3.90613162]
[1765939847484,0.002,2968.1,2967.3,0.52170067]
[1765939847782,0.002,2968.1,2967.3,0.53189175]
[1765939848190,0.002,2968.1,2967.5,0.488]
[1765939848491,0.002,2968.1,2968.0,0.959]
[1765939848787,0.002,2968.1,2968.0,4.86427223]
[1765939848994,0.002,2968.1,2968.0,5.68763814]
[1765939849193,3.36993919,2969.2,2968.2,0.488]
[1765939849358,3.36802398,2969.1,2968.2,0.488]
[1765939849552,6.73604796,2969.1,2968.2,0.488]
[1765939849758,0.0211,2969.0,2968.0,0.536]
[1765939849983,0.0211,2968.1,2968.0,0.536]
[1765939850165,0.0211,2968.6,2968.0,0.536]
[1765939850166,0.0211,2968.6,2968.0,3.90527223]
[1765939850362,0.0211,2968.6,2968.0,0.536]
[1765939850563,0.0211,2968.1,2968.0,0.536]
[1765939851389,0.0211,2968.1,2968.0,3.90527223]
[1765939851607,3.3685189,2968.7,2968.0,7.6650791]
[1765939851896,3.36827463,2968.9,2968.0,7.27454446]
[1765939852189,0.002,2968.1,2968.0,3.90527223]
[1765939852487,0.002,2968.1,2968.0,4.37627223]
[1765939852671,0.002,2968.1,2968.0,4.86427223]
[1765939854461,0.002,2968.1,2968.0,4.89796495]
[1765939854762,0.002,2968.1,2968.0,6.028965]
[1765939855703,0.002,2968.1,2968.0,6.434469]
[1765939856794,0.002,2968.1,2968.0,6.89884923]
[1765939857360,0.002,2969.2,2969.1,1.1558]
[1765939857988,0.002,2969.2,2968.9,0.535]
[1765939858189,0.0211,2969.0,2968.9,0.535]
[1765939858389,0.002,2969.2,2968.9,0.535]
[1765939858600,0.002,2969.2,2969.1,0.471]
[1765939858798,0.002,2969.2,2968.9,0.535]
[1765939858973,0.002,2969.2,2968.6,0.536]
[1765939859162,0.0211,2968.7,2968.6,0.536]
[1765939859563,0.0211,2968.7,2968.6,3.90451328]
[1765939859790,0.0231,2969.2,2968.6,3.90451328]
[1765939859992,0.0211,2968.7,2968.6,3.90451328]
[1765939860587,0.0211,2968.7,2967.8,0.1968]
[1765939860797,0.0422,2968.7,2968.0,0.536]
[1765939861192,0.0422,2968.7,2968.0,3.90525434]
[1765939861402,0.0422,2968.7,2968.0,0.536]